bitfinex/quotes_ETHUSD_20250319
["timestamp","ask_amount","ask_price","bid_price","bid_amount"]
[1742402180486,6.42106643,2042.8,2042.3,5.7398]
[1742402180633,0.11562906,2042.4,2042.3,5.7398]
[1742402180806,1.52582643,2042.8,2042.3,5.7398]
[1742402181003,0.11601139,2042.7,2042.4,4.05799564]
[1742402181327,0.60833869,2043.0,2042.6,3.0]
[1742402181328,4.89486,2043.0,2042.6,3.0]
[1742402181505,4.89486,2043.0,2042.6,9.06]
[1742402182391,4.89502,2042.9,2042.6,9.06]
[1742402182630,1.38478756,2042.9,2042.6,9.06]
[1742402183197,10.60781,2043.2,2042.6,9.06]
[1742402183393,4.89454,2043.1,2042.6,9.06]
[1742402184127,4.8946,2043.1,2042.6,9.06]
[1742402185540,5.71331,2043.2,2042.6,9.06]
[1742402185739,0.819,2043.2,2042.6,9.06]
[1742402186042,4.89384,2043.4,2042.7,11.2233952]
[1742402186604,4.89404,2043.3,2042.7,9.83499564]
[1742402187024,0.11625702,2043.2,2042.7,9.83499564]
[1742402187764,0.11625702,2043.2,2042.9,4.05799564]
[1742402187946,0.11625702,2043.2,2043.1,4.84339564]
[1742402188131,4.89309,2043.7,2043.1,15.88439564]
[1742402188371,0.489309,2043.6,2043.1,15.88439564]
[1742402188575,0.6061499,2043.6,2043.1,15.88439564]
[1742402188862,0.1168409,2043.6,2043.3,4.05799564]
[1742402189162,0.1168409,2043.6,2043.4,3.7949]
[1742402189366,4.89247,2044.0,2043.4,3.7949]
[1742402189565,0.11246849,2043.5,2043.4,3.7949]
[1742402189749,16.921,2044.1,2043.6,0.7931]
[1742402190068,2.181289,2044.0,2043.6,6.8531]
[1742402190367,16.921,2044.1,2043.6,6.8531]
[1742402190529,4.89192,2044.2,2043.6,6.8531]
[1742402190931,4.89193,2044.2,2043.6,6.8531]
[1742402191161,9.71707564,2044.3,2043.6,6.8531]
[1742402191366,4.89141,2044.4,2043.7,4.10691923]
[1742402191535,4.89174,2044.3,2043.8,3.0]
[1742402191735,4.89193,2044.2,2043.7,3.0]
[1742402192067,9.73753564,2044.5,2043.8,6.8889]
[1742402192370,4.89176,2044.3,2043.8,6.8889]
[1742402192667,10.57083,2044.5,2043.8,6.8889]
[1742402192839,4.89094,2044.6,2044.0,0.7898]
[1742402193045,4.89093,2044.6,2044.0,6.8498]
[1742402193240,4.89146,2044.4,2044.0,6.8498]
[1742402193556,8.94922564,2044.5,2044.0,6.8498]
[1742402193754,4.89151,2044.4,2044.0,6.8498]
[1742402193957,6.27559056,2044.4,2044.0,6.8498]
[1742402195065,1.38408056,2044.4,2044.0,6.8498]
[1742402195365,4.89104,2044.6,2044.0,10.90779564]
[1742402195527,9.78216,2044.6,2044.0,10.90779564]
[1742402195730,8.94928564,2044.5,2044.0,6.8498]
[1742402195967,13.84068564,2044.5,2044.0,6.8498]
[1742402196365,9.76318564,2044.5,2044.0,6.8498]
[1742402196552,5.86783856,2044.4,2044.0,6.8498]
[1742402196762,0.97631856,2044.4,2044.0,6.8498]
[1742402196959,13.84004564,2044.6,2044.0,6.8498]
[1742402197152,4.89141,2044.4,2044.0,6.8498]
[1742402197468,4.89165,2044.3,2044.0,6.8498]
[1742402197770,4.89165,2044.3,2044.0,6.06]
[1742402198136,9.77410564,2044.4,2044.0,6.06]
[1742402198468,10.7515162,2044.4,2044.0,6.06]
[1742402198843,0.97741056,2044.4,2044.0,6.06]
[1742402199066,5.72247,2044.6,2044.0,10.11799564]
[1742402199366,4.89119,2044.5,2044.1,0.8099]
[1742402201071,5.71957,2044.5,2044.0,6.06]
[1742402201274,8.94999564,2044.2,2044.0,6.06]
[1742402201449,4.89164,2044.3,2044.0,6.06]
[1742402201450,4.89171,2044.3,2044.0,6.06]
[1742402201641,4.89194,2044.2,2044.0,6.06]
[1742402201970,4.89212,2044.1,2044.0,6.06]
[1742402202176,0.10622595,2044.1,2043.8,3.99689694]
[1742402202467,4.89142,2044.4,2043.8,3.99689694]
[1742402202468,4.89142,2044.4,2043.9,0.8031]
[1742402202772,0.10594477,2044.0,2043.9,0.8031]
[1742402203073,0.10597555,2044.0,2043.9,0.8031]
[1742402203280,4.89174,2044.3,2043.9,0.8031]
[1742402203438,4.99839711,2044.0,2043.7,3.8031]
[1742402203645,4.89261,2043.9,2043.5,0.8031]
[1742402203843,4.99887182,2043.9,2043.5,0.8031]
[1742402204681,4.89294,2043.8,2043.5,0.8031]
[1742402204882,4.99887182,2043.9,2043.5,0.8031]
[1742402205066,0.10589604,2043.7,2043.5,0.8031]
[1742402205262,4.89261,2043.9,2043.5,0.8031]
[1742402205468,0.10579952,2043.6,2043.5,0.8031]
[1742402205774,9.7849,2044.0,2043.5,0.8031]
[1742402205986,0.10567637,2043.6,2043.5,0.8031]
[1742402206146,1.46219956,2044.0,2043.5,0.8031]
[1742402206481,4.89332,2043.6,2043.4,6.06]
[1742402207080,0.10566493,2043.5,2043.3,0.7689]
[1742402207243,0.10566493,2043.5,2043.4,4.05799564]
[1742402207444,4.8924,2044.0,2043.5,0.8275]
[1742402207870,10.64831,2044.1,2043.5,0.8275]
[1742402208075,15.54059,2044.1,2043.5,0.8275]
[1742402208258,0.7791,2044.1,2043.5,0.8275]
[1742402208459,4.89191,2044.2,2043.7,0.8275]
[1742402208658,9.36733356,2044.3,2043.7,0.8275]
[1742402208871,11.25916356,2044.3,2043.7,0.8275]
[1742402209078,4.89202,2044.2,2043.7,0.8275]
[1742402209249,4.89202,2044.2,2043.7,2.48126134]
[1742402209444,8.95001564,2044.2,2043.7,2.48126134]
[1742402209649,8.94999564,2044.2,2043.7,0.8275]
[1742402209849,8.94999564,2044.2,2043.5,6.67511776]
[1742402210061,8.95037564,2044.0,2043.5,12.47961776]
[1742402210273,8.95037564,2044.0,2043.5,11.8645]
[1742402210590,4.89272,2043.9,2043.5,11.8645]
[1742402211562,9.78549,2043.9,2043.5,11.8645]
[1742402211888,4.89332,2043.6,2043.3,5.7899]
[1742402212097,4.89332,2043.6,2043.3,0.8129]
[1742402212590,4.89305,2043.8,2043.3,0.8129]
[1742402212792,4.89302,2043.8,2043.3,0.8129]
[1742402212982,4.89316,2043.7,2043.3,0.8129]
[1742402214000,4.89358,2043.5,2043.3,0.8129]
[1742402214314,4.89366,2043.5,2043.3,0.8129]
[1742402214795,4.89317,2043.7,2043.3,0.8129]
[1742402215155,4.89305,2043.8,2043.3,0.8129]
[1742402215359,9.78608,2043.8,2043.3,0.8129]
[1742402215558,11.24772756,2043.8,2043.3,0.8129]
[1742402215893,4.89319,2043.7,2043.3,0.8129]
[1742402217091,4.99916148,2043.6,2043.3,0.8129]
[1742402217391,4.89362,2043.5,2043.3,0.8129]
[1742402217592,0.10550683,2043.4,2043.3,0.8129]
[1742402217891,4.99939683,2043.4,2043.2,6.06]
[1742402218120,6.06391851,2043.4,2043.2,6.06]
[1742402218318,4.89404,2043.3,2043.2,6.06]
[1742402218617,0.10522653,2043.3,2043.2,6.06]
[1742402218818,4.89404,2043.3,2043.2,6.06]
[1742402219008,4.99926653,2043.3,2043.2,6.06]
[1742402219717,0.10522653,2043.3,2043.2,6.06]
[1742402220013,4.89332,2043.6,2043.2,6.06]
[1742402220213,0.1054812,2043.5,2043.3,0.7702]
[1742402220515,4.9990612,2043.5,2043.3,0.7702]
[1742402220819,4.9990612,2043.5,2043.2,6.06]
[1742402221318,6.39409888,2043.5,2043.2,6.06]
[1742402221518,5.55851452,2043.5,2043.2,6.06]
[1742402221723,8.95203564,2043.3,2043.2,6.06]
[1742402222224,4.89458,2043.1,2042.8,0.7702]
[1742402222520,0.10531024,2043.0,2042.8,0.7702]
[1742402222818,5.00011024,2043.0,2042.8,0.7702]
[1742402222985,5.00011024,2043.0,2042.7,4.976]
[1742402223185,4.89506,2042.9,2042.6,6.8302]
[1742402223496,0.10505549,2042.8,2042.6,6.8302]
[1742402223819,0.10505549,2042.8,2042.4,3.0]
[1742402223820,5.00036549,2042.8,2042.4,6.06]
[1742402224008,4.89548,2042.7,2042.4,6.8302]
[1742402224346,0.1048007,2042.6,2042.4,6.8302]
[1742402224529,4.22399395,2042.6,2042.2,0.7702]
[1742402224685,4.89579,2042.6,2042.2,0.7702]
[1742402224885,0.10413431,2042.5,2042.2,0.7702]
[1742402225109,0.10413431,2042.5,2042.2,6.4146152]
[1742402225481,4.89581,2042.6,2042.2,6.4146152]
[1742402225694,0.10374625,2042.4,2042.2,6.4146152]
[1742402225890,4.89581,2042.6,2042.2,6.4146152]
[1742402226141,0.10361878,2042.3,2042.2,6.4146152]
[1742402226429,5.00005878,2042.3,2042.2,0.7702]
[1742402226733,0.10361878,2042.3,2042.1,6.06]
[1742402226929,5.00005878,2042.3,2042.1,6.06]
[1742402227135,5.00005878,2042.3,2042.0,0.8174]
[1742402227497,4.89694,2042.1,2041.9,6.06]
[1742402227734,0.10361878,2042.3,2041.9,6.06]
[1742402228030,4.89628,2042.4,2041.9,7.24002]
[1742402228333,4.89675,2042.2,2041.9,6.06]
[1742402228500,4.89704,2042.1,2041.9,6.06]
[1742402228699,4.89704,2042.1,2041.8,0.7642]
[1742402228700,5.00040381,2042.1,2041.8,0.7642]
[1742402228925,4.89725,2042.0,2041.8,0.7642]
[1742402229130,4.89739,2041.9,2041.7,6.06]
[1742402229319,5.00057879,2041.9,2041.5,0.7642]
[1742402229517,5.00057879,2041.9,2041.5,3.7642]
[1742402229518,5.00055879,2041.9,2041.5,3.7642]
[1742402229829,0.10310879,2041.9,2041.5,3.7642]
[1742402230224,0.10310879,2041.9,2041.6,0.04897847]
[1742402230416,4.89678,2042.2,2041.5,10.07184025]
[1742402230622,0.10311549,2042.1,2041.5,10.07184025]
[1742402230815,5.00007549,2042.1,2041.5,10.07184025]
[1742402231016,4.89716,2042.0,2041.5,9.7080152]
[1742402231198,4.89772,2041.8,2041.5,0.7642]
[1742402231395,0.10179864,2041.7,2041.5,0.7642]
[1742402231943,4.89826,2041.6,2041.4,3.0]
[1742402232096,4.89811,2041.6,2041.3,6.8833]
[1742402232295,0.10139306,2041.5,2041.3,6.8833]
[1742402232510,0.10139306,2041.5,2041.1,0.0897731]
[1742402232511,4.99988306,2041.5,2041.1,6.9510731]
[1742402232912,0.10139306,2041.5,2041.1,6.9510731]
[1742402233108,0.10139306,2041.5,2041.1,11.00906874]
[1742402233514,4.89823,2041.6,2041.1,11.00906874]
[1742402233714,0.10126548,2041.4,2041.1,11.00906874]
[1742402234034,0.10113788,2041.3,2041.1,12.94357906]
[1742402234209,4.8979,2041.7,2041.1,12.94357906]
[1742402234414,0.10123485,2041.6,2041.1,12.94357906]
[1742402234616,9.79551,2041.8,2041.1,12.94357906]
[1742402234817,0.10136241,2041.7,2041.1,12.94357906]
[1742402235019,0.10136241,2041.7,2041.4,0.8159]
[1742402235339,4.99932241,2041.7,2041.4,0.8159]
[1742402235518,4.99932241,2041.7,2041.2,0.7554]
[1742402235519,4.89824,2041.6,2041.2,0.7554]
[1742402235843,0.10110728,2041.5,2041.2,0.7554]
[1742402237041,9.79546,2041.8,2041.3,4.05799564]
[1742402237243,0.10151651,2041.7,2041.3,4.05799564]
[1742402237632,0.7655,2041.9,2041.4,6.06]
[1742402237829,0.10167305,2041.8,2041.5,4.81299564]
[1742402238021,4.977,2042.2,2041.7,4.05799564]
[1742402238217,0.10196032,2042.1,2041.8,0.755]
[1742402238413,16.924,2042.3,2041.8,1.87850171]
[1742402238608,0.10209195,2042.2,2041.8,0.755]
[1742402238945,0.10209195,2042.2,2041.8,5.732]
[1742402239238,0.10209195,2042.2,2041.8,11.792]
[1742402239609,0.10209195,2042.2,2042.0,0.7807]
[1742402239944,10.61005,2042.8,2042.0,0.7807]
[1742402240243,4.89581,2042.6,2042.1,6.06]
[1742402240551,6.454205,2042.7,2042.1,6.06]
[1742402240846,4.89583,2042.6,2042.1,6.06]
[1742402241039,4.89606,2042.5,2042.1,6.06]
[1742402241216,4.89631,2042.4,2042.1,6.06]
[1742402241416,0.979237,2042.4,2042.1,6.06]
[1742402241740,4.89644,2042.3,2042.1,6.06]
[1742402241941,10.95225431,2042.7,2042.0,0.7807]
[1742402241942,4.89604,2042.5,2042.0,0.7807]
[1742402242246,4.89635,2042.4,2042.0,0.7807]
[1742402242421,9.79274,2042.4,2042.0,0.7807]
[1742402242615,4.89635,2042.4,2042.0,0.7807]
[1742402242817,4.89599,2042.5,2042.0,0.7807]
[1742402243026,4.8962,2042.4,2042.0,0.7807]
[1742402243936,9.79259,2042.4,2042.0,0.7807]
[1742402244142,1.66572943,2042.5,2041.8,6.06]
[1742402244143,4.89707,2042.1,2041.8,6.06]
[1742402244342,9.79417,2042.1,2041.8,6.06]
[1742402244637,4.89707,2042.1,2041.8,6.06]
[1742402244845,4.89787,2041.7,2041.6,6.06]
[1742402245008,4.89787,2041.7,2041.4,0.7762]
[1742402245711,4.89764,2041.8,2041.4,0.7762]
[1742402245905,4.8968,2042.2,2041.4,5.27419931]
[1742402246110,4.8968,2042.2,2041.6,0.7762]
[1742402246342,4.8968,2042.2,2041.6,3.7762]
[1742402246541,21.82544,2042.3,2041.6,3.7762]
[1742402246729,4.8962,2042.4,2041.8,3.7992]
[1742402246938,4.89671,2042.2,2041.8,3.7992]
[1742402247430,0.09109334,2042.1,2041.8,3.7992]
[1742402247634,4.89626,2042.4,2041.8,4.82183614]
[1742402247836,0.09132163,2042.3,2041.8,4.82183614]
[1742402248220,6.56171943,2042.5,2041.8,4.82183614]
[1742402248548,4.89574,2042.6,2041.9,5.7958]
[1742402248721,4.98773777,2042.4,2042.0,6.06]
[1742402248912,9.79321,2042.3,2042.0,6.06]
[1742402249117,4.98805715,2042.3,2042.0,6.06]
[1742402249530,4.89668,2042.2,2042.0,6.06]
[1742402249847,1.06964372,2042.2,2041.8,0.8198]
[1742402250040,4.98823966,2042.1,2041.8,0.8198]
[1742402250234,0.09127966,2042.1,2041.8,0.8198]
[1742402250427,4.89646,2042.3,2041.8,3.8198]
[1742402250623,4.98861466,2042.2,2041.8,3.8198]
[1742402250929,4.89708,2042.1,2041.8,0.8198]
[1742402251130,9.79416,2042.1,2041.8,0.8198]
[1742402251443,9.88619377,2042.0,2041.7,6.06]
[1742402251821,4.98886377,2042.0,2041.7,6.06]
[1742402252021,9.88619377,2042.0,2041.7,6.06]
[1742402252241,4.89779,2041.8,2041.6,0.7554]
[1742402252441,0.09125209,2041.7,2041.6,0.7554]
[1742402252952,4.8974,2041.9,2041.6,0.7554]
[1742402253119,0.0911656,2041.7,2041.6,0.7554]
[1742402253315,5.96845938,2042.0,2041.6,0.7554]
[1742402253521,0.0911656,2041.7,2041.6,0.7554]
[1742402253755,5.96845938,2042.0,2041.6,0.7554]
[1742402254056,0.09113478,2041.7,2041.6,0.7554]
[1742402254251,5.96845938,2042.0,2041.6,0.7554]
[1742402254553,0.09142061,2041.9,2041.6,0.7554]
[1742402254719,4.89765,2041.8,2041.6,0.7554]
[1742402254921,5.59503374,2041.8,2041.5,3.0]
[1742402255452,0.69738374,2041.8,2041.5,3.0]
[1742402255756,5.59509374,2041.8,2041.5,3.0]
[1742402255928,0.09135474,2041.8,2041.5,3.0]
[1742402256135,5.72271,2042.2,2041.6,0.8126]
[1742402256330,0.09125805,2041.7,2041.6,0.86157259]
[1742402256530,4.89621,2042.4,2041.8,0.8126]
[1742402256743,9.79258,2042.4,2041.8,0.8126]
[1742402256944,4.89621,2042.4,2041.8,2.78326532]
[1742402257259,9.79261,2042.4,2041.8,2.78326532]
[1742402257429,4.89719,2042.0,2041.8,0.8126]
[1742402257760,4.89693,2042.1,2041.8,0.8126]
[1742402258057,9.79501,2041.9,2041.6,6.8726]
[1742402258259,4.89741,2041.9,2041.6,6.8726]
[1742402258455,4.89767,2041.8,2041.6,6.8726]
[1742402259263,5.877178,2041.8,2041.6,6.06]
[1742402259557,4.89787,2041.7,2041.6,6.06]
[1742402260652,5.877228,2041.8,2041.6,6.06]
[1742402260963,4.89787,2041.7,2041.6,6.06]
[1742402262126,4.98796938,2041.7,2041.6,6.06]
[1742402262326,6.56422912,2041.7,2041.6,6.06]
[1742402263058,0.09009938,2041.7,2041.6,6.06]
[1742402263944,0.09009938,2041.7,2041.3,6.06]
[1742402265483,4.98797938,2041.7,2041.3,6.06]
[1742402266264,0.09009938,2041.7,2041.3,6.06]
[1742402266886,4.89824,2041.6,2041.2,3.7566]
[1742402267158,9.88595938,2041.7,2041.2,3.7566]
[1742402267339,0.08649066,2041.5,2041.2,3.7566]
[1742402267655,9.79594,2041.7,2041.2,3.7566]
[1742402267859,2.338305,2042.7,2041.7,3.0]
[1742402268024,4.89603,2042.5,2041.9,3.0]
[1742402268238,4.89621,2042.4,2041.9,3.0]
[1742402268430,0.7796,2042.4,2041.9,3.0]
[1742402268629,5.67593,2042.4,2041.9,3.0]
[1742402268847,0.7796,2042.4,2041.9,3.0]
[1742402269047,5.6759,2042.4,2041.9,3.0]
[1742402269638,4.89654,2042.3,2041.9,3.0]
[1742402270276,4.55921146,2042.2,2041.4,6.8151]
[1742402270574,4.89671,2042.2,2041.5,0.7551]
[1742402270753,5.69691,2042.3,2041.6,4.49799931]
[1742402271079,10.59353,2042.3,2041.7,1.50959993]
[1742402271375,4.89681,2042.2,2041.7,1.50959993]
[1742402272076,9.79366,2042.2,2041.7,1.50959993]
[1742402272774,4.89681,2042.2,2041.7,1.50959993]
[1742402273555,4.89647,2042.3,2041.7,1.50959993]
[1742402273768,4.89678,2042.2,2041.7,1.50959993]
[1742402274272,4.89669,2042.2,2041.7,1.50959993]
[1742402274584,4.89647,2042.3,2041.7,1.50959993]
[1742402274768,9.79307,2042.3,2041.8,0.60075992]
[1742402274968,7.724087,2042.4,2041.7,1.50959993]
[1742402274969,4.8967,2042.2,2041.7,1.50959993]
[1742402275179,4.89723,2042.0,2041.7,0.7598]
[1742402275358,5.67665,2042.1,2041.7,0.7598]
[1742402275559,0.07062348,2041.9,2041.7,0.7598]
[1742402275775,4.89736,2042.0,2041.6,6.06]
[1742402275948,0.07049596,2041.8,2041.6,6.06]
[1742402276280,4.89774,2041.8,2041.6,6.06]
[1742402276446,0.07036843,2041.7,2041.6,9.06]
[1742402277784,0.07036843,2041.7,2041.6,6.06]
[1742402277962,4.96823843,2041.7,2041.6,6.06]
[1742402278171,4.96823843,2041.7,2041.3,0.7629]
[1742402278172,4.89828,2041.6,2041.3,0.7629]
[1742402278364,4.89844,2041.5,2041.2,6.06]
[1742402278686,9.86697003,2041.5,2041.2,6.06]
[1742402278862,4.96843003,2041.5,2041.2,6.06]
[1742402279069,9.86696003,2041.5,2041.2,6.06]
[1742402279269,0.06999003,2041.5,2041.1,3.8526731]
[1742402279492,4.89874,2041.4,2041.1,3.8526731]
[1742402279858,4.96819942,2041.3,2041.1,3.8526731]
[1742402280186,9.86720942,2041.3,2041.1,3.0897731]
[1742402280389,4.89907,2041.2,2041.1,0.0897731]
[1742402280688,0.06908291,2041.2,2041.1,0.0897731]
[1742402281594,4.89828,2041.6,2041.1,0.8717731]
[1742402281916,0.06962003,2041.5,2041.1,0.8717731]
[1742402282195,0.06962003,2041.5,2041.1,3.8717731]
[1742402282359,4.96799003,2041.5,2041.1,2.20615034]
[1742402282554,0.06962003,2041.5,2041.1,2.20615034]
[1742402282755,4.96802003,2041.5,2041.1,2.20615034]
[1742402282986,4.89907,2041.2,2041.1,0.0897731]
[1742402283290,4.89869,2041.4,2041.1,0.0897731]
[1742402283787,0.06935658,2041.3,2041.1,0.0897731]
[1742402283969,4.89837,2041.5,2041.1,0.0897731]
[1742402284163,0.06929065,2041.2,2041.1,0.0897731]
[1742402284369,4.89901,2041.3,2041.1,0.0897731]
[1742402284588,5.388911,2041.3,2041.1,0.0897731]
[1742402284794,0.06929065,2041.2,2041.1,0.0897731]
[1742402285090,4.898,2041.7,2041.2,0.782]
[1742402285266,4.8982,2041.6,2041.2,0.782]
[1742402285670,9.79598,2041.7,2041.2,0.782]
[1742402285882,22.7176,2041.8,2041.1,0.0897731]
[1742402285883,4.89845,2041.5,2041.1,0.0897731]
[1742402286271,17.7436,2041.8,2041.2,5.32579931]
[1742402286606,16.931,2041.8,2041.3,3.0]
[1742402287781,16.931,2041.8,2041.4,0.8278]
[1742402288674,16.931,2041.8,2041.4,6.8878]
[1742402288906,4.974,2042.0,2041.4,16.35979931]
[1742402289103,5.69841,2042.2,2041.5,8.82377993]
[1742402289267,10.5953,2042.2,2041.5,8.82377993]
[1742402289594,5.69841,2042.2,2041.5,8.82377993]
[1742402289916,4.89711,2042.1,2041.5,8.82377993]
[1742402290390,5.69838,2042.2,2041.5,8.82377993]
[1742402290572,4.89645,2042.3,2041.7,0.7669]
[1742402290772,8.436207,2042.4,2041.7,0.7669]
[1742402290773,8.436037,2042.4,2041.7,0.7669]
[1742402291106,5.68595,2042.4,2041.7,0.7669]
[1742402291502,10.58237,2042.4,2041.7,0.7669]
[1742402291929,4.89648,2042.3,2041.7,0.7669]
[1742402292207,4.89695,2042.1,2041.7,0.7669]
[1742402292586,0.06267298,2042.0,2041.7,0.7669]
[1742402292908,5.69397,2042.0,2041.6,3.0]
[1742402293071,4.96034498,2041.9,2041.5,6.8543]
[1742402294531,0.06271498,2041.9,2041.6,0.8225]
[1742402294726,4.89677,2042.2,2041.6,0.8225]
[1742402294900,0.06243841,2041.8,2041.6,0.8225]
[1742402295101,4.89701,2042.1,2041.6,1.51075]
[1742402295307,0.06269343,2042.0,2041.6,1.51075]
[1742402295912,4.89704,2042.1,2041.6,1.51075]
[1742402296113,0.06269343,2042.0,2041.6,1.51075]
[1742402297231,4.89669,2042.2,2041.6,1.51075]
[1742402297427,0.06267446,2041.9,2041.6,1.51075]
[1742402297633,4.89644,2042.3,2041.6,1.51075]
[1742402297845,0.06254695,2041.8,2041.6,1.51075]
[1742402298141,8.7261,2042.4,2041.6,1.51075]
[1742402298142,4.8974,2041.9,2041.6,0.8225]
[1742402298299,0.06272767,2041.7,2041.6,0.8225]
[1742402298499,4.89716,2042.0,2041.6,0.8225]
[1742402298698,0.06285938,2041.9,2041.6,0.8225]
[1742402298898,0.06285938,2041.9,2041.7,0.69314776]
[1742402299102,0.06239284,2041.8,2041.7,6.75314776]
[1742402299404,4.89668,2042.2,2041.7,6.75314776]
[1742402299739,4.89694,2042.1,2041.7,6.75314776]
[1742402299931,0.06277534,2042.1,2041.7,6.06]
[1742402300125,4.89754,2041.9,2041.7,6.06]
[1742402300328,4.96014613,2041.8,2041.7,6.06]
[1742402300527,0.06251613,2041.8,2041.7,6.06]
[1742402300706,4.89754,2041.9,2041.7,6.06]
[1742402301126,0.06270106,2041.8,2041.7,6.06]
[1742402301453,4.89763,2041.8,2041.7,6.06]
[1742402301748,4.96023859,2041.8,2041.7,6.06]
[1742402302049,0.06260859,2041.8,2041.7,6.06]
[1742402302348,4.89754,2041.9,2041.7,6.06]
[1742402302551,4.89718,2042.0,2041.7,6.06]
[1742402302852,0.06273188,2041.8,2041.7,6.06]
[1742402303052,4.89718,2042.0,2041.7,6.06]
[1742402303220,0.06260859,2041.8,2041.7,6.06]
[1742402303542,4.8974,2041.9,2041.7,6.06]
[1742402303744,0.06267024,2041.8,2041.7,6.06]
[1742402304112,0.06270106,2041.8,2041.7,6.06]
[1742402304462,4.8974,2041.9,2041.7,6.06]
[1742402304655,0.06267024,2041.8,2041.7,6.06]
[1742402304947,0.06267024,2041.8,2041.6,0.8225]
[1742402305154,4.06273541,2042.0,2041.5,6.06]
[1742402305326,4.89811,2041.6,2041.5,6.06]
[1742402305759,0.06250768,2041.6,2041.5,6.06]
[1742402306852,4.96061768,2041.6,2041.5,6.06]
[1742402307359,0.06250768,2041.6,2041.5,12.81233541]
[1742402307558,0.06250768,2041.6,2041.5,14.13478508]
[1742402307720,4.89637,2042.4,2041.6,3.0]
[1742402307721,4.89644,2042.3,2041.6,3.0]
[1742402307921,4.89644,2042.3,2041.8,0.7776]
[1742402308159,0.0607138,2042.2,2041.8,0.7776]
[1742402308360,0.0607138,2042.2,2041.8,1.56163354]
[1742402309067,4.89645,2042.3,2041.8,1.56163354]
[1742402309263,0.06027634,2042.1,2041.8,0.7776]
[1742402309426,4.95719381,2042.2,2041.8,0.7776]
[1742402309627,0.06024132,2042.0,2041.8,0.7776]
[1742402309849,4.89679,2042.2,2041.8,0.7776]
[1742402310052,0.06011382,2041.9,2041.8,0.7776]
[1742402310359,0.06005217,2041.9,2041.8,1.16041344]
[1742402310665,4.89645,2042.3,2041.8,1.16041344]
[1742402310870,0.06002135,2041.9,2041.8,1.16041344]
[1742402311038,4.8968,2042.2,2041.8,1.16041344]
[1742402311227,0.06011382,2041.9,2041.8,0.7776]
[1742402311428,10.59637,2042.2,2041.8,0.7776]
[1742402311644,0.06011382,2041.9,2041.8,0.7776]
[1742402311843,10.39594367,2042.6,2041.8,0.7776]
[1742402311844,0.8331,2042.6,2041.8,0.7776]
[1742402312139,4.89646,2042.3,2042.0,3.0]
[1742402312352,4.89676,2042.2,2042.0,3.0]
[1742402312668,9.79358,2042.2,2042.0,3.0]
[1742402313364,4.89676,2042.2,2042.0,3.0]
[1742402314567,4.89646,2042.3,2042.0,3.0]
[1742402314765,4.8968,2042.2,2042.0,3.0]
[1742402314965,4.89691,2042.1,2042.0,3.0]
[1742402315269,4.89691,2042.1,2041.9,3.0]
[1742402315668,9.79365,2042.2,2041.9,3.0]
[1742402315874,4.8968,2042.2,2041.9,3.0]
[1742402316575,4.89693,2042.1,2041.9,3.0]
[1742402316774,0.979373,2042.0,2041.7,0.0505344]
[1742402316986,4.89763,2041.8,2041.7,0.0505344]
[1742402317461,5.67913,2041.8,2041.7,0.0505344]
[1742402318036,4.89763,2041.8,2041.7,0.0505344]
[1742402321301,5.67867,2042.0,2041.7,0.0505344]
[1742402321457,10.57595,2042.0,2041.7,0.0505344]
[1742402321659,5.67867,2042.0,2041.7,0.0505344]
[1742402321859,9.86789,2042.2,2041.7,0.0505344]
[1742402321860,4.89698,2042.1,2041.7,0.0505344]
[1742402322058,0.0573286,2041.9,2041.7,0.0505344]
[1742402322258,4.89723,2042.0,2041.7,0.0505344]
[1742402322495,0.05713943,2041.8,2041.7,0.0505344]
[1742402322699,9.86782,2042.2,2041.7,6.1105344]
[1742402322860,21.82747,2042.3,2041.8,0.8175]
[1742402323489,26.72411,2042.3,2041.8,0.8175]
[1742402323671,4.89678,2042.2,2041.8,0.8175]
[1742402324598,25.1305273,2042.3,2041.8,0.8175]
[1742402324803,21.82746,2042.3,2041.8,0.8175]
[1742402324991,4.89646,2042.3,2041.8,0.8175]
[1742402325712,4.89646,2042.3,2041.8,3.8175]
[1742402326277,4.89608,2042.5,2041.8,3.0]
[1742402326480,4.89622,2042.4,2041.9,2.14886374]
[1742402326900,4.89608,2042.5,2041.9,2.14886374]
[1742402327279,9.79227,2042.5,2041.9,2.14886374]
[1742402327508,9.7922,2042.5,2041.9,2.14886374]
[1742402327895,4.89608,2042.5,2041.9,2.14886374]
[1742402328096,9.79221,2042.5,2042.0,0.51488637]
[1742402328295,4.89622,2042.4,2042.0,0.51488637]
[1742402328505,4.89603,2042.5,2042.0,6.57488637]
[1742402328890,4.89578,2042.6,2042.1,0.7849]
[1742402329304,4.89604,2042.5,2042.1,0.7849]
[1742402329518,4.89604,2042.5,2042.1,2.06301286]
[1742402330220,4.89604,2042.5,2042.1,0.7849]
[1742402330715,4.89691,2042.1,2042.0,6.06]
[1742402330935,4.89683,2042.2,2041.7,0.8450344]
[1742402331100,8.95681849,2042.3,2041.7,0.8450344]
[1742402331101,4.89644,2042.3,2041.7,0.8450344]
[1742402331299,9.77810849,2042.5,2041.8,0.7945]
[1742402331300,0.8216,2042.5,2041.8,0.7945]
[1742402331527,10.61384,2042.5,2041.9,0.49054129]
[1742402331838,4.89626,2042.4,2041.9,0.49054129]
[1742402332040,4.89626,2042.4,2042.0,0.7945]
[1742402332538,9.79269,2042.4,2042.0,0.7945]
[1742402332760,4.89647,2042.3,2042.0,0.7945]
[1742402333700,11.6546,2042.7,2042.0,0.7945]
[1742402334047,4.89634,2042.4,2042.0,0.7945]
[1742402335332,4.89596,2042.5,2042.0,0.7945]
[1742402335542,0.8189,2043.0,2042.3,4.06037849]
[1742402335743,4.89493,2043.0,2042.5,4.06037849]